fUST/lending_fUST_20251006
["ID","MTS","AMOUNT","RATE_DAILY","PERIOD"]
[389517561,1759692640739,-814.23,0.00016712,2]
[389517563,1759692640748,-670.58,0.00016712,2]
[389517565,1759692640757,-582.13,0.00016712,2]
[389517567,1759692640768,-569.74,0.00016712,2]
[389517569,1759692640777,-500.0,0.00016712,2]
[389517571,1759692640786,-500.0,0.00016712,2]
[389517573,1759692640795,-500.0,0.00016712,2]
[389517575,1759692640804,-6442.78,0.00016712,2]
[389517577,1759692640813,-1155.21,0.00016712,2]
[389517579,1759692640822,-500.0,0.00016712,2]
[389517598,1759692640993,-500.0,0.00016712,2]
[389517600,1759692641003,-1398.22,0.00016712,2]
[389517602,1759692641012,-500.0,0.00016712,2]
[389517605,1759692641021,-2931.06,0.00016712,2]
[389517606,1759692641031,-500.0,0.00016712,2]
[389517609,1759692641040,-704.18,0.00016712,2]
[389517611,1759692641049,-500.0,0.00016712,2]
[389517613,1759692641058,-537.55,0.00016712,2]
[389517615,1759692641067,-500.0,0.00016712,2]
[389517617,1759692641076,-500.0,0.00016712,2]
[389517619,1759692641085,-1616.83,0.00016712,2]
[389517621,1759692641094,-500.0,0.00016712,2]
[389517623,1759692641103,-500.0,0.00016712,2]
[389517625,1759692641112,-1653.33,0.00016712,2]
[389517627,1759692641121,-1409.77,0.00016712,2]
[389517629,1759692641130,-500.0,0.00016712,2]
[389517631,1759692641139,-500.0,0.00016712,2]
[389517633,1759692641148,-532.88,0.00016712,2]
[389517635,1759692641158,-814.85,0.00016712,2]
[389517637,1759692641167,-500.0,0.00016712,2]
[389517639,1759692641176,-3574.17,0.00016712,2]
[389517641,1759692641185,-921.73,0.00016712,2]
[389517643,1759692641194,-1329.89,0.00016712,2]
[389517645,1759692641203,-1077.54,0.00016712,2]
[389517647,1759692641212,-950.3,0.00016712,2]
[389517649,1759692641221,-500.0,0.00016712,2]
[389517651,1759692641233,-500.0,0.00016712,2]
[389517653,1759692641243,-500.0,0.00016712,2]
[389517654,1759692641252,-500.0,0.00016712,2]
[389517656,1759692641262,-3182.69,0.00016712,2]
[389517658,1759692641271,-521.18,0.00016712,2]
[389517660,1759692641280,-1200.37,0.00016712,2]
[389517662,1759692641289,-1390.33,0.00016712,2]
[389517664,1759692641298,-500.0,0.00016712,2]
[389517666,1759692641307,-1902.39,0.00016712,2]
[389517668,1759692641316,-500.0,0.00016712,2]
[389517670,1759692641326,-5583.95,0.00016712,2]
[389517672,1759692641335,-5192.42,0.00016712,2]
[389517674,1759692641344,-1706.76,0.00016712,2]
[389517676,1759692641353,-1999.22,0.00016712,2]
[389517678,1759692641362,-500.0,0.00016712,2]
[389517680,1759692641372,-500.0,0.00016712,2]
[389517682,1759692641381,-300.0,0.00016766,2]
[389517684,1759692641390,-300.0,0.00016766,2]
[389517686,1759692641399,-300.0,0.00016766,2]
[389517688,1759692641408,-300.0,0.00016766,2]
[389517690,1759692641417,-300.0,0.00016766,2]
[389517692,1759692641426,-300.0,0.00016766,2]
[389517694,1759692641435,-300.0,0.00016766,2]
[389517696,1759692641444,-300.0,0.00016766,2]
[389517697,1759692641453,-300.0,0.00016766,2]
[389517699,1759692641462,-300.0,0.00016766,2]
[389517701,1759692641471,-300.0,0.00016766,2]
[389517703,1759692641480,-300.0,0.00016766,2]
[389517705,1759692641489,-300.0,0.00016766,2]
[389517707,1759692641498,-300.0,0.00016766,2]
[389517709,1759692641507,-300.0,0.00016766,2]
[389517711,1759692641516,-600.0,0.00016766,2]
[389517713,1759692641525,-348.0,0.00016826,2]
[389517715,1759692641534,-324.0,0.00016828,2]
[389517717,1759692641544,-500.0,0.00016986,2]
[389517719,1759692641553,-514.21966805,0.00016986,2]
[389517721,1759692641562,-500.0,0.00016986,2]
[389517723,1759692641571,-500.0,0.00016986,2]
[389517725,1759692641581,-500.0,0.00016986,2]
[389517727,1759692641590,-193.54318782,0.00016986,2]
[389517729,1759692641599,-500.0,0.00016986,2]
[389517731,1759692641609,-500.0,0.00016986,2]
[389517733,1759692641618,-500.0,0.00016986,2]
[389517735,1759692641627,-1101.78,0.00016986,2]
[389517737,1759692641636,-500.0,0.00016986,2]
[389517739,1759692641645,-500.0,0.00016986,2]
[389517741,1759692641655,-500.0,0.00016986,2]
[389517743,1759692641664,-734.59,0.00016986,2]
[389517745,1759692641673,-613.4,0.00016986,2]
[389517747,1759692641683,-541.71,0.00016986,2]
[389517749,1759692641692,-500.0,0.00016986,2]
[389517751,1759692641701,-1007.86,0.00016986,2]
[389517753,1759692641711,-500.0,0.00016986,2]
[389517755,1759692641720,-500.0,0.00016986,2]
[389517757,1759692641729,-500.0,0.00016986,2]
[389517759,1759692641738,-500.0,0.00016986,2]
[389517761,1759692641747,-545.83,0.00016986,2]
[389517763,1759692641757,-500.0,0.00016986,2]
[389517765,1759692641766,-500.0,0.00016986,2]
[389517767,1759692641775,-500.0,0.00016986,2]
[389517769,1759692641784,-500.0,0.00016986,2]
[389517771,1759692641793,-500.0,0.00016986,2]
[389517773,1759692641803,-623.0,0.00016986,2]
[389517775,1759692641812,-941.07,0.00016986,2]
[389517777,1759692641821,-1704.19,0.00016986,2]
[389517779,1759692641830,-500.0,0.00016986,2]
[389517781,1759692641839,-1027.87,0.00016986,2]
[389517783,1759692641848,-500.0,0.00016986,2]
[389517785,1759692641857,-500.0,0.00016986,2]
[389517787,1759692641866,-526.84,0.00016986,2]
[389517789,1759692641876,-500.0,0.00016986,2]
[389517791,1759692641885,-341.92160715,0.00016986,2]
[389517793,1759692641894,-543.22,0.00016986,2]
[389517795,1759692641903,-500.0,0.00016986,2]
[389517797,1759692641912,-500.0,0.00016986,2]
[389517799,1759692641922,-867.19,0.00016986,2]
[389517802,1759692641936,-679.18,0.00016986,2]
[389517804,1759692641945,-610.06,0.00016986,2]
[389517806,1759692641954,-700.71,0.00016986,2]
[389517808,1759692641963,-327.38402587,0.00016986,2]
[389517810,1759692641973,-673.07,0.00016986,2]
[389517812,1759692641983,-500.0,0.00016986,2]
[389517814,1759692641998,-500.0,0.00016986,2]
[389517816,1759692642009,-500.0,0.00016986,2]
[389517818,1759692642019,-809.79,0.00016986,2]
[389517820,1759692642029,-500.0,0.00016986,2]
[389517822,1759692642038,-1748.31,0.00016986,2]
[389517824,1759692642047,-500.0,0.00016986,2]
[389517826,1759692642056,-1036.92,0.00016986,2]
[389517828,1759692642066,-356.71982264,0.00016986,2]
[389517830,1759692642075,-500.0,0.00016986,2]
[389517832,1759692642085,-500.0,0.00016986,2]
[389517834,1759692642094,-500.0,0.00016986,2]
[389517836,1759692642103,-500.0,0.00016986,2]
[389517838,1759692642112,-500.0,0.00016986,2]
[389517840,1759692642122,-589.55,0.00016986,2]
[389517842,1759692642131,-1718.63,0.00016986,2]
[389517844,1759692642140,-284.09574521,0.00016986,2]
[389517846,1759692642149,-500.0,0.00016986,2]
[389517848,1759692642158,-500.0,0.00016986,2]
[389517850,1759692642167,-500.0,0.00016986,2]
[389517852,1759692642177,-500.0,0.00016986,2]
[389517854,1759692642186,-707.46,0.00016986,2]
[389517855,1759692642195,-500.0,0.00016986,2]
[389517857,1759692642204,-650.41,0.00016986,2]
[389517859,1759692642213,-500.0,0.00016986,2]
[389517861,1759692642222,-1044.75,0.00016986,2]
[389517863,1759692642236,-500.0,0.00016986,2]
[389517865,1759692642246,-539.43,0.00016986,2]
[389517867,1759692642255,-727.65,0.00016986,2]
[389517869,1759692642264,-845.99,0.00016986,2]
[389517871,1759692642275,-500.0,0.00016986,2]
[389517873,1759692642285,-500.0,0.00016986,2]
[389517875,1759692642294,-500.0,0.00016986,2]
[389517876,1759692642304,-818.26,0.00016986,2]
[389517877,1759692642315,-500.0,0.00016986,2]
[389517878,1759692642324,-5075.45,0.00016986,2]
[389517879,1759692642337,-500.0,0.00016986,2]
[389517880,1759692642346,-1971.29,0.00016986,2]
[389517881,1759692642355,-500.0,0.00016986,2]
[389517882,1759692642364,-1923.98,0.00016986,2]
[389517883,1759692642381,-628.15,0.00016986,2]
[389517884,1759692642392,-500.0,0.00016986,2]
[389517886,1759692642401,-820.02,0.00016986,2]
[389517887,1759692642411,-2676.55,0.00016986,2]
[389517888,1759692642420,-500.0,0.00016986,2]
[389517890,1759692642429,-1089.03,0.00016986,2]
[389517892,1759692642438,-500.0,0.00016986,2]
[389517894,1759692642448,-500.0,0.00016986,2]
[389517896,1759692642458,-1104.93,0.00016986,2]
[389517898,1759692642467,-500.0,0.00016986,2]
[389517900,1759692642476,-500.0,0.00016986,2]
[389517902,1759692642486,-500.0,0.00016986,2]
[389517904,1759692642495,-544.49,0.00016986,2]
[389517906,1759692642504,-500.0,0.00016986,2]
[389517908,1759692642513,-2626.85,0.00016986,2]
[389517910,1759692642524,-651.08,0.00016986,2]
[389517912,1759692642533,-1933.04,0.00016986,2]
[389517914,1759692642542,-500.0,0.00016986,2]
[389517916,1759692642551,-640.21,0.00016986,2]
[389517918,1759692642560,-500.0,0.00016986,2]
[389517920,1759692642570,-500.0,0.00016986,2]
[389517922,1759692642579,-4219.41,0.00016986,2]
[389517924,1759692642588,-3139.2,0.00016986,2]
[389517926,1759692642598,-3871.69,0.00016986,2]
[389517928,1759692642607,-1243.49,0.00016986,2]
[389517930,1759692642616,-500.0,0.00016986,2]
[389517932,1759692642626,-500.0,0.00016986,2]
[389517934,1759692642634,-500.0,0.00016986,2]
[389517936,1759692642643,-857.23,0.00016986,2]
[389517938,1759692642652,-588.92,0.00016986,2]
[389517940,1759692642661,-597.79,0.00016986,2]
[389517943,1759692642670,-500.0,0.00016986,2]
[389517945,1759692642679,-500.0,0.00016986,2]
[389517947,1759692642688,-3649.83,0.00016986,2]
[389517949,1759692642698,-484.64798756,0.00016986,2]
[389517951,1759692642707,-924.11,0.00016986,2]
[389517953,1759692642715,-601.34,0.00016986,2]
[389517955,1759692642724,-670.11,0.00016986,2]
[389517957,1759692642733,-521.26,0.00016986,2]
[389517958,1759692642741,-3096.74,0.00016986,2]
[389517960,1759692642751,-1663.12,0.00016986,2]
[389517962,1759692642760,-1711.03,0.00016986,2]
[389517964,1759692642769,-1159.56,0.00016986,2]
[389517966,1759692642778,-1107.41,0.00016986,2]
[389517968,1759692642787,-500.0,0.00016986,2]
[389517970,1759692642797,-669.78,0.00016986,2]
[389517972,1759692642806,-500.0,0.00016986,2]
[389517974,1759692642814,-1321.05,0.00016986,2]
[389517976,1759692642823,-1386.38,0.00016986,2]
[389517978,1759692642832,-622.72,0.00016986,2]
[389517980,1759692642841,-500.0,0.00016986,2]
[389517982,1759692642850,-2338.81,0.00016986,2]
[389517984,1759692642859,-2336.38,0.00016986,2]
[389517986,1759692642868,-807.08,0.00016986,2]
[389517988,1759692642878,-758.74,0.00016986,2]
[389517990,1759692642887,-500.0,0.00016986,2]
[389517992,1759692642895,-500.0,0.00016986,2]
[389517994,1759692642904,-500.0,0.00016986,2]
[389517996,1759692642913,-500.0,0.00016986,2]
[389517998,1759692642923,-814.23,0.00016986,2]
[389518000,1759692642932,-670.58,0.00016986,2]
[389518002,1759692642941,-582.13,0.00016986,2]
[389518004,1759692642950,-569.74,0.00016986,2]
[389518006,1759692642959,-500.0,0.00016986,2]
[389518008,1759692642968,-6442.78,0.00016986,2]
[389518010,1759692642977,-1155.21,0.00016986,2]
[389518012,1759692642987,-500.0,0.00016986,2]
[389518013,1759692642996,-1398.22,0.00016986,2]
[389518015,1759692643005,-500.0,0.00016986,2]
[389518017,1759692643014,-2931.06,0.00016986,2]
[389518019,1759692643023,-704.18,0.00016986,2]
[389518021,1759692643032,-500.0,0.00016986,2]
[389518023,1759692643042,-537.55,0.00016986,2]
[389518025,1759692643051,-500.0,0.00016986,2]
[389518027,1759692643060,-1616.83,0.00016986,2]
[389518029,1759692643069,-500.0,0.00016986,2]
[389518031,1759692643078,-500.0,0.00016986,2]
[389518033,1759692643088,-1653.33,0.00016986,2]
[389518035,1759692643096,-1409.77,0.00016986,2]
[389518037,1759692643106,-500.0,0.00016986,2]
[389518039,1759692643115,-500.0,0.00016986,2]
[389518040,1759692643124,-532.88,0.00016986,2]
[389518042,1759692643133,-814.85,0.00016986,2]
[389518044,1759692643143,-500.0,0.00016986,2]
[389518046,1759692643152,-3574.17,0.00016986,2]
[389518048,1759692643161,-921.73,0.00016986,2]
[389518050,1759692643171,-1329.89,0.00016986,2]
[389518052,1759692643180,-1077.54,0.00016986,2]
[389518054,1759692643189,-950.3,0.00016986,2]
[389518056,1759692643198,-500.0,0.00016986,2]
[389518058,1759692643207,-500.0,0.00016986,2]
[389518060,1759692643216,-450.55712572,0.00016986,2]
[389518066,1759692643271,-500.0,0.00016986,2]
[389518068,1759692643280,-3182.69,0.00016986,2]
[389518070,1759692643290,-521.18,0.00016986,2]
[389518071,1759692643299,-1200.37,0.00016986,2]
[389518073,1759692643308,-1390.33,0.00016986,2]
[389518075,1759692643317,-500.0,0.00016986,2]
[389518077,1759692643329,-1902.39,0.00016986,2]
[389518079,1759692643338,-500.0,0.00016986,2]
[389518080,1759692643351,-5583.95,0.00016986,2]
[389518082,1759692643367,-5192.42,0.00016986,2]
[389518083,1759692643376,-1706.76,0.00016986,2]
[389518085,1759692643385,-1999.22,0.00016986,2]
[389518087,1759692643395,-500.0,0.00016986,2]
[389518088,1759692643404,-500.0,0.00016986,2]
[389518089,1759692643413,-71348.51999242,0.0001699,2]
[389518090,1759692643422,-110027.93956836,0.00017,2]
[389518091,1759692643431,-1533.53654839,0.00017059,2]
[389518092,1759692643441,-348.0,0.00017228,2]
[389518093,1759692643450,-250.0,0.00017254,2]
[389518094,1759692643459,-162.380719,0.00017254,2]
[389518095,1759692643468,-251.54027301,0.00017254,2]
[389518096,1759692643477,-250.0,0.00017254,2]
[389518097,1759692643487,-250.0,0.00017254,2]
[389518098,1759692643496,-151.0,0.00017254,2]
[389518099,1759692643506,-250.0,0.00017254,2]
[389518100,1759692643515,-151.0,0.00017254,2]
[389518102,1759692643525,-250.0,0.00017254,2]
[389518103,1759692643534,-500.0,0.00017254,2]
[389518104,1759692643544,-250.0,0.00017254,2]
[389518106,1759692643553,-500.0,0.00017254,2]
[389518107,1759692643562,-500.0,0.00017254,2]
[389518108,1759692643571,-2030.296672,0.00017254,2]
[389518109,1759692643581,-605.36418013,0.00017254,2]
[389518110,1759692643590,-500.0,0.00017254,2]
[389518111,1759692643599,-18603.8837,0.00017254,2]
[389518112,1759692643607,-162.380719,0.00017254,2]
[389518113,1759692643616,-500.0,0.0001726,2]
[389518114,1759692643626,-500.0,0.0001726,2]
[389518115,1759692643635,-500.0,0.0001726,2]
[389518116,1759692643643,-500.0,0.0001726,2]
[389518117,1759692643652,-500.0,0.0001726,2]
[389518118,1759692643661,-500.0,0.0001726,2]
[389518119,1759692643670,-500.0,0.0001726,2]
[389518120,1759692643679,-1149.68,0.0001726,2]
[389518121,1759692643688,-1101.78,0.0001726,2]
[389518122,1759692643697,-500.0,0.0001726,2]
[389518123,1759692643706,-500.0,0.0001726,2]
[389518124,1759692643715,-500.0,0.0001726,2]
[389518125,1759692643724,-734.59,0.0001726,2]
[389518126,1759692643732,-613.4,0.0001726,2]
[389518127,1759692643741,-541.71,0.0001726,2]
[389518128,1759692643750,-500.0,0.0001726,2]
[389518129,1759692643759,-1007.86,0.0001726,2]
[389518130,1759692643767,-500.0,0.0001726,2]
[389518131,1759692643777,-500.0,0.0001726,2]
[389518132,1759692643786,-545.83,0.0001726,2]
[389518133,1759692643795,-500.0,0.0001726,2]
[389518134,1759692643803,-500.0,0.0001726,2]
[389518135,1759692643813,-500.0,0.0001726,2]
[389518136,1759692643822,-500.0,0.0001726,2]
[389518137,1759692643831,-623.0,0.0001726,2]
[389518138,1759692643840,-941.07,0.0001726,2]
[389518139,1759692643849,-1704.19,0.0001726,2]
[389518140,1759692643857,-500.0,0.0001726,2]
[389518141,1759692643866,-1027.87,0.0001726,2]
[389518143,1759692643875,-500.0,0.0001726,2]
[389518144,1759692643884,-500.0,0.0001726,2]
[389518146,1759692643893,-526.84,0.0001726,2]
[389518148,1759692643902,-500.0,0.0001726,2]
[389518150,1759692643911,-543.22,0.0001726,2]
[389518152,1759692643921,-500.0,0.0001726,2]
[389518154,1759692643930,-500.0,0.0001726,2]
[389518156,1759692643939,-867.19,0.0001726,2]
[389518157,1759692643948,-679.18,0.0001726,2]
[389518159,1759692643957,-610.06,0.0001726,2]
[389518161,1759692643966,-700.71,0.0001726,2]
[389518162,1759692643975,-673.07,0.0001726,2]
[389518164,1759692643984,-500.0,0.0001726,2]
[389518166,1759692643992,-500.0,0.0001726,2]
[389518167,1759692644002,-500.0,0.0001726,2]
[389518168,1759692644011,-809.79,0.0001726,2]
[389518169,1759692644020,-1748.31,0.0001726,2]
[389518170,1759692644029,-500.0,0.0001726,2]
[389518171,1759692644038,-1036.92,0.0001726,2]
[389518172,1759692644047,-500.0,0.0001726,2]
[389518173,1759692644057,-500.0,0.0001726,2]
[389518174,1759692644066,-500.0,0.0001726,2]
[389518175,1759692644075,-500.0,0.0001726,2]
[389518176,1759692644084,-500.0,0.0001726,2]
[389518177,1759692644093,-589.55,0.0001726,2]
[389518178,1759692644104,-1718.63,0.0001726,2]
[389518179,1759692644114,-500.0,0.0001726,2]
[389518180,1759692644123,-597.11748466,0.0001726,2]
[389518181,1759692644132,-500.0,0.0001726,2]
[389518182,1759692644142,-500.0,0.0001726,2]
[389518183,1759692644151,-707.46,0.0001726,2]
[389518184,1759692644160,-500.0,0.0001726,2]
[389518185,1759692644170,-650.41,0.0001726,2]
[389518186,1759692644179,-500.0,0.0001726,2]
[389518187,1759692644189,-1044.75,0.0001726,2]
[389518188,1759692644198,-539.43,0.0001726,2]
[389518189,1759692644207,-727.65,0.0001726,2]
[389518190,1759692644216,-845.99,0.0001726,2]
[389518191,1759692644228,-500.0,0.0001726,2]
[389518192,1759692644239,-500.0,0.0001726,2]
[389518193,1759692644247,-500.0,0.0001726,2]
[389518194,1759692644256,-818.26,0.0001726,2]
[389518195,1759692644265,-500.0,0.0001726,2]
[389518196,1759692644277,-5075.45,0.0001726,2]
[389518197,1759692644286,-500.0,0.0001726,2]
[389518198,1759692644295,-1971.29,0.0001726,2]
[389518199,1759692644305,-500.0,0.0001726,2]
[389518200,1759692644314,-1923.98,0.0001726,2]
[389518201,1759692644323,-628.15,0.0001726,2]
[389518202,1759692644332,-500.0,0.0001726,2]
[389518203,1759692644341,-820.02,0.0001726,2]
[389518204,1759692644351,-2676.55,0.0001726,2]
[389518205,1759692644360,-629.80299077,0.0001726,2]
[389518206,1759692644369,-1089.03,0.0001726,2]
[389518207,1759692644378,-500.0,0.0001726,2]
[389518208,1759692644388,-500.0,0.0001726,2]
[389518209,1759692644398,-1104.93,0.0001726,2]
[389518210,1759692644407,-500.0,0.0001726,2]
[389518211,1759692644416,-382.54202202,0.0001726,2]
[389518212,1759692644426,-500.0,0.0001726,2]
[389518213,1759692644435,-544.49,0.0001726,2]
[389518214,1759692644444,-500.0,0.0001726,2]
[389518215,1759692644454,-2626.85,0.0001726,2]
[389518216,1759692644463,-651.08,0.0001726,2]
[389518217,1759692644472,-1933.04,0.0001726,2]
[389518218,1759692644482,-500.0,0.0001726,2]
[389518219,1759692644491,-640.21,0.0001726,2]
[389518220,1759692644500,-500.0,0.0001726,2]
[389518221,1759692644509,-500.0,0.0001726,2]
[389518222,1759692644520,-4219.41,0.0001726,2]
[389518223,1759692644529,-3139.2,0.0001726,2]
[389518224,1759692644538,-3871.69,0.0001726,2]
[389518225,1759692644547,-1243.49,0.0001726,2]
[389518226,1759692644556,-500.0,0.0001726,2]
[389518227,1759692644565,-500.0,0.0001726,2]
[389518228,1759692644574,-500.0,0.0001726,2]
[389518229,1759692644583,-857.23,0.0001726,2]
[389518230,1759692644593,-588.92,0.0001726,2]
[389518231,1759692644602,-597.79,0.0001726,2]
[389518232,1759692644611,-500.0,0.0001726,2]
[389518233,1759692644620,-500.0,0.0001726,2]
[389518234,1759692644629,-3649.83,0.0001726,2]
[389518235,1759692644638,-924.11,0.0001726,2]
[389518236,1759692644647,-601.34,0.0001726,2]
[389518237,1759692644656,-670.11,0.0001726,2]
[389518238,1759692644665,-3096.74,0.0001726,2]
[389518239,1759692644674,-1663.12,0.0001726,2]
[389518240,1759692644683,-1711.03,0.0001726,2]
[389518241,1759692644693,-1159.56,0.0001726,2]
[389518242,1759692644702,-1107.41,0.0001726,2]
[389518243,1759692644712,-500.0,0.0001726,2]
[389518244,1759692644723,-669.78,0.0001726,2]
[389518245,1759692644732,-583.79487945,0.0001726,2]
[389518246,1759692644741,-1321.05,0.0001726,2]
[389518247,1759692644751,-1386.38,0.0001726,2]
[389518248,1759692644761,-151.0,0.0001726,2]
[389518249,1759692644770,-622.72,0.0001726,2]
[389518250,1759692644779,-500.0,0.0001726,2]
[389518251,1759692644788,-151.0,0.0001726,2]
[389518252,1759692644798,-2338.81,0.0001726,2]
[389518253,1759692644806,-2336.38,0.0001726,2]
[389518254,1759692644815,-151.0,0.0001726,2]
[389518255,1759692644824,-807.08,0.0001726,2]
[389518256,1759692644833,-758.74,0.0001726,2]
[389518257,1759692644842,-500.0,0.0001726,2]
[389518258,1759692644851,-500.0,0.0001726,2]
[389518259,1759692644860,-151.0,0.0001726,2]
[389518260,1759692644869,-500.0,0.0001726,2]
[389518261,1759692644878,-500.0,0.0001726,2]
[389518263,1759692644887,-151.0,0.0001726,2]
[389518264,1759692644895,-151.0,0.0001726,2]
[389518265,1759692644904,-151.0,0.0001726,2]
[389518266,1759692644913,-814.23,0.0001726,2]
[389518267,1759692644923,-670.58,0.0001726,2]
[389518268,1759692644932,-582.13,0.0001726,2]
[389518269,1759692644941,-569.74,0.0001726,2]
[389518270,1759692644950,-6442.78,0.0001726,2]
[389518271,1759692644960,-1155.21,0.0001726,2]
[389518272,1759692644969,-500.0,0.0001726,2]
[389518273,1759692644979,-151.0,0.0001726,2]
[389518274,1759692644988,-1398.22,0.0001726,2]
[389518275,1759692644997,-500.0,0.0001726,2]
[389518276,1759692645006,-2931.06,0.0001726,2]
[389518277,1759692645015,-151.0,0.0001726,2]
[389518278,1759692645026,-704.18,0.0001726,2]
[389518279,1759692645036,-500.0,0.0001726,2]
[389518280,1759692645045,-537.55,0.0001726,2]
[389518281,1759692645054,-549.62031783,0.0001726,2]
[389518282,1759692645063,-151.0,0.0001726,2]
[389518283,1759692645072,-1616.83,0.0001726,2]
[389518284,1759692645081,-151.0,0.0001726,2]
[389518285,1759692645091,-500.0,0.0001726,2]
[389518286,1759692645100,-151.0,0.0001726,2]
[389518287,1759692645110,-289.31838181,0.0001726,2]
[389518288,1759692645120,-500.0,0.0001726,2]
[389518289,1759692645129,-1653.33,0.0001726,2]
[389518290,1759692645139,-1409.77,0.0001726,2]
[389518292,1759692645148,-500.0,0.0001726,2]
[389518293,1759692645158,-500.0,0.0001726,2]
[389518295,1759692645167,-155.350315,0.0001726,2]
[389518297,1759692645176,-151.0,0.0001726,2]
[389518299,1759692645185,-532.88,0.0001726,2]
[389518301,1759692645194,-814.85,0.0001726,2]
[389518303,1759692645204,-500.0,0.0001726,2]
[389518305,1759692645213,-3574.17,0.0001726,2]
[389518307,1759692645223,-921.73,0.0001726,2]
[389518309,1759692645236,-1329.89,0.0001726,2]
[389518311,1759692645246,-500.0,0.0001726,2]
[389518312,1759692645255,-1077.54,0.0001726,2]
[389518313,1759692645265,-950.3,0.0001726,2]
[389518314,1759692645274,-151.0,0.0001726,2]
[389518315,1759692645284,-500.0,0.0001726,2]
[389518316,1759692645293,-151.0,0.0001726,2]
[389518317,1759692645303,-500.0,0.0001726,2]
[389518318,1759692645312,-500.0,0.0001726,2]
[389518319,1759692645323,-3182.69,0.0001726,2]
[389518320,1759692645332,-521.18,0.0001726,2]
[389518321,1759692645341,-1200.37,0.0001726,2]
[389518322,1759692645351,-1390.33,0.0001726,2]
[389518323,1759692645360,-500.0,0.0001726,2]
[389518324,1759692645369,-1902.39,0.0001726,2]
[389518325,1759692645379,-500.0,0.0001726,2]
[389518326,1759692645388,-5583.95,0.0001726,2]
[389518327,1759692645398,-5192.42,0.0001726,2]
[389518328,1759692645408,-151.0,0.0001726,2]
[389518329,1759692645417,-1706.76,0.0001726,2]
[389518330,1759692645428,-1999.22,0.0001726,2]
[389518331,1759692645439,-157.15423862,0.00017309,2]
[389518332,1759692645448,-398.27015713,0.00017438,2]
[389518333,1759692645458,-1593.08062851,0.00017438,2]
[389518334,1759692645467,-3580.84698273,0.00017438,2]
[389518335,1759692645477,-1533.53654839,0.00017506,2]
[389518336,1759692645486,-500.0,0.00017534,2]
[389518337,1759692645495,-500.0,0.00017534,2]
[389518338,1759692645505,-500.0,0.00017534,2]
[389518339,1759692645515,-364.83798122,0.00017534,2]
[389518340,1759692645525,-500.0,0.00017534,2]
[389518341,1759692645535,-500.0,0.00017534,2]
[389518342,1759692645544,-500.0,0.00017534,2]
[389518343,1759692645553,-165.15678399,0.00017534,2]
[389518344,1759692645562,-1149.68,0.00017534,2]
[389518345,1759692645571,-1101.78,0.00017534,2]
[389518346,1759692645581,-151.0,0.00017534,2]
[389518347,1759692645591,-229.12188916,0.00017534,2]
[389518348,1759692645601,-619.56458738,0.00017534,2]
[389518349,1759692645610,-500.0,0.00017534,2]